bitfinex/quotes_BTCUSD_20251209
["timestamp","ask_amount","ask_price","bid_price","bid_amount"]
[1765293403084,0.01773779,90721.0,90720.0,0.22045855]
[1765293403309,0.01873779,90721.0,90720.0,0.24253649]
[1765293403505,0.23919391,90721.0,90718.0,0.23148656]
[1765293403712,0.01102304,90719.0,90716.0,0.02307794]
[1765293403884,0.0936407,90717.0,90716.0,0.22146587]
[1765293404087,0.00161287,90719.0,90718.0,0.22046341]
[1765293404488,0.00161287,90719.0,90716.0,0.2314893]
[1765293404830,0.01873779,90721.0,90718.0,0.01102317]
[1765293405158,0.01102304,90719.0,90716.0,0.001]
[1765293405269,0.23248402,90719.0,90718.0,0.002]
[1765293405469,0.23248402,90719.0,90716.0,0.001]
[1765293405470,0.01263591,90719.0,90716.0,0.001]
[1765293405732,0.31410654,90717.0,90716.0,0.001]
[1765293405939,0.31571941,90717.0,90716.0,0.001]
[1765293406313,0.23149653,90715.0,90711.0,0.22047968]
[1765293406523,0.22047826,90712.0,90709.0,0.01102426]
[1765293406719,0.23149944,90713.0,90709.0,0.23150944]
[1765293406930,0.22047859,90712.0,90709.0,0.23150944]
[1765293407162,0.00161287,90715.0,90712.0,0.01102389]
[1765293407335,0.00161287,90715.0,90714.0,0.22047313]
[1765293408674,0.00161287,90715.0,90714.0,0.22347313]
[1765293408809,0.00261287,90715.0,90714.0,0.22347313]
[1765293409516,0.22308357,90715.0,90714.0,0.003]
[1765293409872,0.22308357,90715.0,90714.0,0.004]
[1765293410379,0.22308357,90715.0,90714.0,0.003]
[1765293410540,0.22308357,90715.0,90714.0,0.001]
[1765293410541,0.00161287,90715.0,90714.0,0.001]
[1765293410741,0.00261287,90715.0,90714.0,0.22447313]
[1765293413314,0.00261287,90715.0,90714.0,0.24655107]
[1765293413454,0.00261287,90715.0,90714.0,0.22447313]
[1765293413656,0.001,90715.0,90714.0,0.24655107]
[1765293413895,0.001,90715.0,90714.0,0.24555107]
[1765293414092,0.0936407,90717.0,90716.0,0.24254621]
[1765293414840,0.0936407,90717.0,90716.0,0.22046827]
[1765293415083,0.0936407,90717.0,90716.0,0.24254621]
[1765293415291,9.779e-05,90721.0,90720.0,0.23045312]
[1765293416407,9.779e-05,90721.0,90720.0,0.56019541]
[1765293416594,9.779e-05,90721.0,90720.0,0.52115312]
[1765293416793,9.779e-05,90721.0,90720.0,1.09667012]
[1765293417142,9.779e-05,90721.0,90720.0,1.10067012]
[1765293417354,0.0002369,90740.0,90739.0,0.23040696]
[1765293417582,0.0002369,90740.0,90739.0,0.52110696]
[1765293417780,0.0002369,90740.0,90739.0,0.57967552]
[1765293417986,0.0002369,90740.0,90739.0,0.52110696]
[1765293418444,0.0002369,90740.0,90739.0,0.60534934]
[1765293419818,0.0002369,90740.0,90739.0,0.60834934]
[1765293420778,0.0002369,90740.0,90739.0,0.27242527]
[1765293420923,0.0002369,90740.0,90739.0,0.23340696]
[1765293421125,0.02198998,90770.0,90739.0,0.23340696]
[1765293421126,0.02959108,90812.0,90749.0,2.0]
[1765293421326,0.02959108,90812.0,90739.0,0.35222976]
[1765293421327,0.00078575,90800.0,90798.0,0.22026794]
[1765293422122,0.00078575,90800.0,90799.0,0.02207794]
[1765293422311,0.00078575,90800.0,90797.0,0.01101357]
[1765293422312,0.0936407,90799.0,90797.0,0.01101357]
[1765293422538,0.09525357,90799.0,90796.0,0.0110137]
[1765293422740,0.09525357,90799.0,90798.0,0.001]
[1765293422940,0.09525357,90799.0,90797.0,0.2202702]
[1765293423285,0.09525357,90799.0,90798.0,0.001]
[1765293423507,0.00478575,90800.0,90799.0,0.24234468]
[1765293424532,0.00078575,90800.0,90799.0,0.24234468]
[1765293424977,0.00078575,90800.0,90796.0,0.23228523]
[1765293424978,0.00239862,90800.0,90796.0,0.001]
[1765293425178,0.001,90799.0,90797.0,0.23128419]
[1765293425518,0.001,90799.0,90797.0,0.25336213]
[1765293425652,0.00239862,90800.0,90799.0,0.22026674]
[1765293426022,0.00239862,90800.0,90799.0,0.22126674]
[1765293426204,0.00439862,90800.0,90799.0,0.001]
[1765293426426,0.00239862,90800.0,90799.0,0.001]
[1765293426619,0.00239862,90800.0,90798.0,0.22026831]
[1765293426920,0.00174589,90799.0,90798.0,0.24234625]
[1765293428980,0.00174589,90799.0,90798.0,0.23026288]
[1765293429186,0.00374589,90799.0,90798.0,0.52096288]
[1765293429394,0.00174589,90799.0,90798.0,0.52096288]
[1765293429572,0.00174589,90799.0,90798.0,0.52196288]
[1765293429815,0.00374589,90799.0,90798.0,0.52196288]
[1765293430027,0.00174589,90799.0,90798.0,0.52096288]
[1765293430239,0.00274589,90799.0,90798.0,0.52296288]
[1765293431294,0.00274589,90799.0,90798.0,0.002]
[1765293431432,0.00174589,90799.0,90798.0,0.00999457]
[1765293431676,0.00274589,90799.0,90798.0,0.01299457]
[1765293432236,0.00274589,90799.0,90798.0,0.003]
[1765293432237,0.00174589,90799.0,90798.0,0.003]
[1765293432438,0.00174589,90799.0,90798.0,0.004]
[1765293432579,0.00174589,90799.0,90797.0,0.24234822]
[1765293432778,0.0936407,90798.0,90797.0,0.24234822]
[1765293433751,0.0936407,90798.0,90797.0,0.24434822]
[1765293433958,0.00078575,90800.0,90799.0,0.22026674]
[1765293434189,0.00078575,90800.0,90799.0,0.23026131]
[1765293434416,0.00078575,90800.0,90799.0,0.52096131]
[1765293435681,0.00078575,90800.0,90799.0,0.23026131]
[1765293435841,0.00178575,90800.0,90799.0,0.23326131]
[1765293436254,0.00339862,90800.0,90799.0,0.006]
[1765293436631,0.00239862,90800.0,90799.0,0.003]
[1765293437042,0.00239862,90800.0,90770.0,0.41339165]
[1765293437043,0.00239862,90800.0,90786.0,0.02207794]
[1765293437248,0.00239862,90800.0,90783.0,0.01101527]
[1765293437249,0.0936407,90787.0,90785.0,0.22030071]
[1765293437451,0.0936407,90798.0,90797.0,0.23128358]
[1765293438254,0.00239862,90800.0,90799.0,0.22026674]
[1765293438454,0.00717408,90800.0,90799.0,0.24434468]
[1765293438685,0.00556121,90800.0,90799.0,0.22226674]
[1765293438886,0.00256121,90800.0,90799.0,0.24334468]
[1765293439107,0.00256121,90800.0,90799.0,0.24234468]
[1765293439784,0.00856121,90800.0,90799.0,0.22126674]
[1765293440007,0.00856121,90800.0,90799.0,0.24234468]
[1765293440221,0.00356121,90800.0,90799.0,0.24234468]
[1765293440869,0.00356121,90800.0,90799.0,0.22026674]
[1765293441740,0.00256121,90800.0,90799.0,0.22026674]
[1765293441944,0.00256121,90800.0,90799.0,0.22226674]
[1765293442320,0.00256121,90800.0,90799.0,0.22026674]
[1765293442527,0.00456121,90800.0,90797.0,0.01101357]
[1765293442733,0.22466293,90800.0,90799.0,0.001]
[1765293442979,0.22266293,90800.0,90799.0,0.001]
[1765293443156,0.01101455,90789.0,90786.0,0.23131145]
[1765293443310,0.0936407,90787.0,90786.0,0.23131145]
[1765293443513,0.0936407,90787.0,90783.0,0.2203047]
[1765293443745,0.01101539,90782.0,90778.0,0.01101588]
[1765293443952,0.22029998,90786.0,90780.0,0.01101564]
[1765293444153,0.00161287,90782.0,90780.0,0.01101564]
[1765293444376,0.00161287,90782.0,90780.0,0.23132805]
[1765293444732,0.0936407,90787.0,90786.0,0.22029828]
[1765293445569,0.0176,90791.0,90786.0,0.22029828]
[1765293445570,0.0176,90791.0,90790.0,0.22028857]
[1765293446804,0.01101442,90790.0,90786.0,0.23231319]
[1765293447007,0.01921287,90791.0,90789.0,0.22029074]
[1765293447204,0.01921287,90791.0,90790.0,0.22028857]
[1765293448297,0.0176,90791.0,90790.0,0.22028857]
[1765293448498,0.0176,90791.0,90790.0,0.22128857]
[1765293448747,0.003,90791.0,90790.0,0.24336651]
[1765293448981,0.0936407,90797.0,90796.0,0.22027402]
[1765293449344,0.0176,90798.0,90797.0,0.22027159]
[1765293449708,0.00078575,90800.0,90799.0,0.22026674]
[1765293449863,0.00078575,90800.0,90795.0,0.01101382]
[1765293450062,0.00239862,90800.0,90797.0,0.01101357]
[1765293450242,0.01101357,90797.0,90786.0,0.01101491]
[1765293450442,0.01262644,90797.0,90790.0,0.2202862]
[1765293450655,0.22027883,90795.0,90791.0,0.22028576]
[1765293450859,0.01262644,90797.0,90792.0,0.01101418]
[1765293451059,0.0936407,90793.0,90792.0,0.23129769]
[1765293451863,0.0936407,90793.0,90790.0,0.23130062]
[1765293452081,0.0936407,90793.0,90790.0,0.01101442]
[1765293452082,0.31392294,90793.0,90790.0,0.01101442]
[1765293452283,0.0966407,90793.0,90792.0,0.001]
[1765293452692,0.31692199,90793.0,90792.0,0.001]
[1765293453014,0.0966407,90793.0,90792.0,0.001]
[1765293453417,0.3139221,90793.0,90790.0,0.23130264]
[1765293453595,0.0966407,90793.0,90792.0,0.22128372]
[1765293455453,0.003,90793.0,90792.0,0.22128372]
[1765293457704,0.10465452,90795.0,90768.0,0.33051264]
[1765293457981,0.11563068,90795.0,90794.0,0.22027887]
[1765293458186,0.0936407,90795.0,90794.0,0.22027887]
[1765293459744,0.0966407,90795.0,90794.0,0.22027887]
[1765293460103,0.00078575,90800.0,90799.0,0.22026674]
[1765293461114,0.00078575,90800.0,90799.0,0.24952369]
[1765293461318,0.00078575,90800.0,90799.0,0.22026674]
[1765293461700,0.00478575,90800.0,90799.0,0.22126674]
[1765293462125,0.00478575,90800.0,90799.0,0.260276]
[1765293462307,0.00478575,90800.0,90799.0,0.22126674]
[1765293462915,0.00078575,90800.0,90799.0,0.22026674]
[1765293463275,0.00178575,90800.0,90799.0,0.22226674]
[1765293463462,0.00078575,90800.0,90799.0,0.22226674]
[1765293463668,0.00078575,90800.0,90799.0,0.51296674]
[1765293463872,0.00078575,90800.0,90799.0,0.53304468]
[1765293463873,0.00178575,90800.0,90799.0,0.53304468]
[1765293464074,0.00078575,90800.0,90799.0,0.53504468]
[1765293464516,0.00078575,90800.0,90799.0,0.51496674]
[1765293464722,0.00078575,90800.0,90799.0,0.51296674]
[1765293465013,0.00078575,90800.0,90799.0,0.53804468]
[1765293465219,0.00078575,90800.0,90799.0,0.51596674]
[1765293465423,0.0004,90820.0,90819.0,0.51091823]
[1765293465641,0.00051581,90820.0,90819.0,0.51091823]
[1765293466032,0.00051581,90820.0,90819.0,0.5921037]
[1765293466654,0.00451581,90820.0,90819.0,0.63400035]
[1765293466931,0.00051581,90820.0,90819.0,0.5941037]
[1765293467081,0.00051581,90820.0,90819.0,0.5921037]
[1765293467307,0.00051581,90820.0,90819.0,0.5941037]
[1765293467502,0.00051581,90820.0,90819.0,0.5951037]
[1765293467934,0.00051581,90820.0,90819.0,0.5921037]
[1765293468286,0.00051581,90820.0,90819.0,0.61618164]
[1765293468820,0.00051581,90820.0,90819.0,0.5941037]
[1765293469208,0.00051581,90820.0,90819.0,0.6429291]
[1765293469387,0.00151581,90820.0,90819.0,0.6409291]
[1765293469588,0.00051581,90820.0,90819.0,0.6409291]
[1765293469788,0.00051581,90820.0,90819.0,0.6419291]
[1765293470028,0.00151581,90820.0,90819.0,0.60309827]
[1765293470235,0.00151581,90820.0,90819.0,0.60209827]
[1765293470570,0.00151581,90820.0,90819.0,0.63221165]
[1765293470890,0.00288258,90820.0,90819.0,0.63221165]
[1765293471130,0.00288258,90820.0,90819.0,0.60209827]
[1765293471362,0.00288258,90820.0,90819.0,0.60309827]
[1765293471544,0.00288258,90820.0,90819.0,0.22121823]
[1765293472688,0.00388258,90820.0,90819.0,0.22021823]
[1765293472898,0.00388258,90820.0,90819.0,0.22221823]
[1765293473033,0.00288258,90820.0,90819.0,0.22221823]
[1765293473445,0.00288258,90820.0,90819.0,0.22021823]
[1765293473630,0.00288258,90820.0,90819.0,0.25133161]
[1765293473834,0.00288258,90820.0,90819.0,0.55174906]
[1765293473835,1e-08,90820.0,90819.0,0.55174906]
[1765293474057,0.0936407,90864.0,90819.0,0.55174906]
[1765293474058,0.0936407,90864.0,90829.0,0.51089399]
[1765293474258,0.0936407,90864.0,90829.0,0.53297193]
[1765293474458,0.00069568,90830.0,90829.0,0.53297193]
[1765293474678,0.00069568,90830.0,90829.0,0.51089399]
[1765293475124,1e-08,90830.0,90829.0,0.51089399]
[1765293475303,1e-08,90830.0,90828.0,0.29594584]
[1765293475304,0.0176,90884.0,90881.0,0.0110034]
[1765293475505,0.01100352,90880.0,90875.0,0.01100412]
[1765293475719,0.01100352,90880.0,90872.0,0.01100448]
[1765293475720,0.22007721,90878.0,90874.0,0.23108829]
[1765293475924,0.10464482,90875.0,90871.0,0.2200915]
[1765293476133,0.02198998,90874.0,90872.0,0.22008897]
[1765293476340,0.02198998,90874.0,90871.0,0.01100461]
[1765293476538,0.00127076,90873.0,90871.0,0.23109573]
[1765293476764,0.01100448,90872.0,90868.0,0.01100497]
[1765293477003,0.01100521,90866.0,90863.0,0.01100557]
[1765293477173,0.00161287,90872.0,90869.0,0.23109948]
[1765293477386,0.0028541,90872.0,90870.0,0.22009342]
[1765293477591,0.00161287,90872.0,90870.0,0.22009342]
[1765293478028,0.00161287,90872.0,90866.0,0.01100521]
[1765293478029,0.01261735,90872.0,90866.0,0.01100521]
[1765293478180,0.02360285,90872.0,90870.0,0.22009287]
[1765293478614,0.00161287,90872.0,90870.0,0.22009287]
[1765293478978,0.00661287,90872.0,90870.0,0.22109287]
[1765293479406,0.00761287,90872.0,90870.0,0.22109287]
[1765293479811,0.006,90872.0,90870.0,0.22109287]
[1765293481160,0.006,90872.0,90871.0,0.31277794]
[1765293481514,0.006,90872.0,90871.0,0.34182461]
[1765293481719,0.001,90872.0,90871.0,0.31277794]
[1765293482133,0.00011568,90884.0,90883.0,0.24214109]
[1765293483195,0.00011568,90884.0,90883.0,0.24314109]
[1765293483390,0.00211568,90884.0,90883.0,0.24314109]
[1765293483591,0.00371133,90884.0,90883.0,0.24314109]
[1765293484253,0.00371133,90884.0,90883.0,0.61518406]
[1765293490029,0.00371133,90884.0,90883.0,0.51176315]
[1765293490861,0.00371133,90884.0,90883.0,0.22106315]
[1765293491512,0.0053242,90884.0,90883.0,0.001]
[1765293493710,0.01100436,90873.0,90869.0,0.01100485]
[1765293494062,0.09482285,90870.0,90868.0,0.22009846]
[1765293494232,0.0936407,90870.0,90868.0,0.22009846]
[1765293495378,0.0936407,90870.0,90868.0,0.22109846]
[1765293495379,0.0996407,90870.0,90868.0,0.22109846]
[1765293495577,0.0936407,90870.0,90868.0,0.22009846]
[1765293496321,0.22011438,90862.0,90858.0,0.01100618]
[1765293496585,0.0936407,90870.0,90855.0,0.00999457]
[1765293496586,0.22010752,90865.0,90856.0,0.01100642]
[1765293496777,0.23112748,90859.0,90855.0,0.01100654]
[1765293496937,0.23112267,90861.0,90857.0,0.22012535]
[1765293497169,0.2201192,90860.0,90856.0,0.23113384]
[1765293497376,0.003,90862.0,90860.0,0.22011854]
[1765293497571,0.003,90862.0,90859.0,0.23112634]
[1765293497781,0.2311178,90863.0,90859.0,0.23112634]
[1765293498167,0.005,90865.0,90863.0,0.22011015]
[1765293498373,0.0936407,90870.0,90868.0,0.22009932]
[1765293498816,0.0936407,90870.0,90866.0,0.2311086]
[1765293498991,0.01100533,90865.0,90861.0,0.23112034]
[1765293499204,0.001,90865.0,90862.0,0.23111902]
[1765293499408,0.23211229,90865.0,90862.0,0.23111942]
[1765293499621,0.0936407,90870.0,90867.0,0.22010094]
[1765293499823,0.31373551,90870.0,90867.0,0.22010079]
[1765293500174,0.0956407,90870.0,90869.0,0.02207794]
[1765293500376,0.002,90870.0,90869.0,0.02207794]
[1765293500569,0.008,90870.0,90869.0,0.02207794]
[1765293500810,0.008,90870.0,90868.0,0.2210991]
[1765293501009,0.002,90870.0,90869.0,0.22009706]
[1765293501325,0.01756,90873.0,90872.0,0.22008979]
[1765293501452,0.002,90870.0,90867.0,0.001]
[1765293501672,0.0936407,90868.0,90863.0,0.22011048]
[1765293501866,0.10464567,90868.0,90865.0,0.23111133]
[1765293502104,0.0936407,90868.0,90867.0,0.2201019]
[1765293502711,0.01100557,90863.0,90857.0,0.22012449]
[1765293502922,0.01100557,90863.0,90856.0,0.01100642]
[1765293502923,0.2311177,90863.0,90858.0,0.01100618]
[1765293503070,0.01100654,90855.0,90849.0,0.01100727]
[1765293503269,0.0946407,90868.0,90820.0,1.17893812]
[1765293503270,0.01100727,90849.0,90842.0,0.01100812]
[1765293503488,0.32479113,90850.0,90847.0,0.23115787]
[1765293503820,0.01100763,90846.0,90842.0,0.01100812]
[1765293504028,0.23277531,90846.0,90843.0,0.22015982]
[1765293504228,0.00161287,90846.0,90844.0,0.22015589]
[1765293504629,0.00161287,90846.0,90840.0,0.01100836]
[1765293504630,0.01100776,90845.0,90840.0,0.01100836]
[1765293504793,0.01100788,90844.0,90841.0,0.01100824]
[1765293504989,0.23277668,90845.0,90842.0,0.23116926]
[1765293504990,0.00161287,90845.0,90842.0,0.23116926]
[1765293505194,0.00161287,90845.0,90843.0,0.22115891]
[1765293505496,0.00161287,90845.0,90843.0,0.22015957]
[1765293505705,0.002,90846.0,90845.0,0.2201552]
[1765293505895,0.01100545,90864.0,90860.0,0.23112278]
[1765293506035,0.22012066,90860.0,90854.0,0.01100667]
[1765293506238,0.01100582,90861.0,90858.0,0.22012312]
[1765293506435,0.22012128,90859.0,90855.0,0.22012949]
[1765293506636,0.01100594,90860.0,90855.0,0.01100654]
[1765293506959,0.00161287,90860.0,90858.0,0.2201233]
[1765293507311,0.00161287,90860.0,90849.0,0.01100727]
[1765293507312,0.01100667,90854.0,90850.0,0.01100715]
[1765293507439,0.01261893,90859.0,90856.0,0.01100642]
[1765293507648,0.01100618,90858.0,90854.0,0.22013285]
[1765293507854,0.01100618,90858.0,90855.0,0.001]
[1765293508062,0.22012775,90857.0,90855.0,0.001]
[1765293508261,0.01100618,90858.0,90853.0,0.2311408]
[1765293508483,0.0936407,90854.0,90853.0,0.2311408]
[1765293508681,0.0936407,90854.0,90851.0,0.23114531]
[1765293508842,0.0936407,90854.0,90852.0,0.22013824]
[1765293509041,0.01100703,90851.0,90847.0,0.01100751]
[1765293509286,0.01100727,90849.0,90846.0,0.01100763]
[1765293509481,0.01100727,90849.0,90847.0,0.2201502]
[1765293509885,0.01100703,90851.0,90848.0,0.22014753]
[1765293510081,0.23114547,90852.0,90849.0,0.22014331]
[1765293510286,0.22013884,90852.0,90850.0,0.01100715]
[1765293510496,0.0936407,90854.0,90853.0,0.22013582]
[1765293510692,0.0936407,90854.0,90852.0,0.22013735]
[1765293511142,0.0936407,90854.0,90853.0,0.22013582]
[1765293511571,0.0936407,90854.0,90853.0,0.22113582]
[1765293511782,0.0966407,90854.0,90853.0,0.22113582]
[1765293511982,0.0946407,90854.0,90853.0,0.22013582]
[1765293512219,0.0976407,90854.0,90853.0,0.22113582]
[1765293512637,0.0986407,90854.0,90853.0,0.22113582]
[1765293512938,0.0986407,90854.0,90853.0,0.001]
[1765293513141,0.3187741,90854.0,90853.0,0.001]
[1765293513594,0.2201461,90849.0,90847.0,0.2311578]
[1765293513966,0.23115049,90850.0,90847.0,0.2311578]
[1765293514352,0.01100679,90853.0,90847.0,0.2311578]
[1765293514353,0.23114706,90852.0,90848.0,0.23115473]
[1765293514556,0.23114987,90851.0,90848.0,0.23115473]
[1765293514962,0.001,90849.0,90844.0,0.01100788]
[1765293515310,0.23116169,90846.0,90843.0,0.23116566]
[1765293515510,0.22015547,90845.0,90843.0,0.011008]
[1765293515729,0.22014591,90849.0,90845.0,0.2201552]
[1765293516145,0.23115318,90849.0,90846.0,0.23115961]
[1765293516581,0.23115318,90849.0,90842.0,0.23116991]
[1765293516582,0.01100945,90831.0,90824.0,0.0110103]
[1765293516767,0.33021795,90850.0,90823.0,0.01101042]
[1765293516768,0.0936407,90825.0,90823.0,0.01101042]
[1765293516992,0.23121641,90824.0,90819.0,0.23122772]
[1765293517193,0.0110103,90824.0,90820.0,0.01101079]
[1765293517406,0.0936407,90825.0,90824.0,0.22020611]
[1765293517611,0.01756,90838.0,90834.0,0.01100909]
[1765293517801,0.01756,90838.0,90837.0,0.22017459]
[1765293518290,0.01756,90838.0,90835.0,0.23118841]
[1765293518546,0.01756,90838.0,90835.0,0.23118676]
[1765293518722,0.01756,90838.0,90837.0,0.22017459]
[1765293518920,0.01756,90843.0,90838.0,0.22017217]
[1765293520387,0.0936407,90854.0,90842.0,0.22016247]
[1765293520606,0.2449,90863.0,90860.0,0.01100594]
[1765293520820,0.01756,90862.0,90861.0,0.2201149]
[1765293521021,0.01100606,90859.0,90853.0,0.01100679]
[1765293521159,0.02198998,90858.0,90857.0,0.23113243]
[1765293521360,0.03017857,90862.0,90857.0,0.23113243]
[1765293521578,0.00082761,90858.0,90857.0,0.23113243]
[1765293521980,0.01100679,90853.0,90849.0,0.23115054]
[1765293522243,0.01100679,90853.0,90852.0,0.22013824]
[1765293522244,0.00161287,90853.0,90852.0,0.22013824]
[1765293523106,0.00161287,90853.0,90850.0,0.23114793]
[1765293523315,0.01100788,90844.0,90837.0,0.04005539]
[1765293523517,0.01262075,90844.0,90839.0,0.01100848]
[1765293523724,0.01262075,90844.0,90840.0,0.2201626]
[1765293523927,0.01262075,90844.0,90842.0,0.22016184]
[1765293524133,0.01262075,90844.0,90841.0,0.01100824]
[1765293524341,0.00161287,90844.0,90841.0,0.01100824]
[1765293524556,0.00261287,90844.0,90843.0,0.22016005]
[1765293524760,0.00161287,90844.0,90843.0,0.22016005]
[1765293525994,0.00161287,90844.0,90842.0,0.22116175]
[1765293525995,0.00161287,90844.0,90842.0,0.22316175]
[1765293526198,0.00261287,90844.0,90843.0,0.22016005]
[1765293526400,0.00161287,90844.0,90843.0,0.22016005]
[1765293526605,0.00261287,90844.0,90843.0,0.22316005]
[1765293527029,0.01100582,90861.0,90858.0,0.01100618]
[1765293527238,0.00011566,90863.0,90862.0,0.22011401]
[1765293527482,0.01767566,90863.0,90862.0,0.22011401]
[1765293527883,0.018651,90863.0,90862.0,0.22011401]
[1765293528314,0.001091,90863.0,90862.0,0.24219195]
[1765293529710,0.001091,90863.0,90862.0,0.24319195]
[1765293529991,0.003091,90863.0,90862.0,0.24219195]
[1765293530403,0.004091,90863.0,90862.0,0.22111401]
[1765293530893,0.006091,90863.0,90862.0,0.22111401]
[1765293531717,0.006091,90863.0,90862.0,0.001]
[1765293532071,0.006091,90863.0,90862.0,0.22111401]
[1765293532961,0.00770387,90863.0,90862.0,0.001]
[1765293533390,0.22781546,90863.0,90862.0,0.001]
[1765293533565,0.00770387,90863.0,90862.0,0.001]
[1765293533807,0.02969385,90863.0,90862.0,0.22111401]
[1765293533983,0.00770387,90863.0,90862.0,0.001]
[1765293534188,0.02969385,90863.0,90862.0,0.22111401]
[1765293534386,0.00770387,90863.0,90862.0,0.22111401]
[1765293535349,0.22781546,90863.0,90862.0,0.001]
[1765293535553,0.00770387,90863.0,90862.0,0.001]
[1765293535862,0.00470387,90863.0,90862.0,0.22011401]
[1765293536061,0.00470387,90863.0,90862.0,0.22111401]
[1765293536062,0.00570387,90863.0,90862.0,0.22111401]
[1765293536177,0.00370387,90863.0,90862.0,0.22011401]
[1765293536587,0.00670387,90863.0,90862.0,0.22111401]
[1765293536781,0.00670387,90863.0,90862.0,0.22011401]
[1765293536982,0.00370387,90863.0,90862.0,0.22011401]
[1765293537190,0.005091,90863.0,90862.0,0.24319195]
[1765293537399,0.005091,90863.0,90862.0,0.27246703]
[1765293537989,0.005091,90863.0,90862.0,0.24319195]
[1765293539309,0.005091,90863.0,90862.0,0.27248515]
[1765293539534,0.005091,90863.0,90862.0,0.56318515]
[1765293539744,0.005091,90863.0,90862.0,0.59198529]
[1765293540150,0.005091,90863.0,90862.0,0.53389195]
[1765293540340,0.004091,90863.0,90862.0,0.53389195]
[1765293540551,0.004091,90863.0,90862.0,0.53289195]
[1765293540552,0.001091,90863.0,90862.0,0.53289195]
[1765293540689,0.002091,90863.0,90862.0,0.56939418]
[1765293540902,0.003091,90863.0,90862.0,0.53789195]
[1765293541318,0.0004,90900.0,90898.0,0.22002684]
[1765293541695,0.00078561,90900.0,90899.0,0.2907]
[1765293541896,0.00078561,90900.0,90899.0,0.33973183]
[1765293542116,0.00078561,90900.0,90899.0,0.30069457]
[1765293542430,0.00078561,90900.0,90899.0,0.32992042]
[1765293542839,0.00078561,90900.0,90899.0,0.30069457]
[1765293543268,0.00178561,90900.0,90899.0,0.30069457]
[1765293543677,0.00078561,90900.0,90899.0,0.30069457]
[1765293544085,0.00078561,90900.0,90899.0,0.30169457]
[1765293544427,0.00378561,90900.0,90899.0,0.30269457]
[1765293545450,0.00078561,90900.0,90899.0,0.30069457]
[1765293545660,0.00078561,90900.0,90899.0,0.30169457]
[1765293546238,0.00078561,90900.0,90899.0,0.30269457]
[1765293546439,0.00078561,90900.0,90899.0,0.30169457]
[1765293546780,0.00078561,90900.0,90899.0,0.33090436]
[1765293546987,0.00078561,90900.0,90899.0,0.30269457]
[1765293547225,0.00078561,90900.0,90899.0,0.33086424]
[1765293547492,0.00078561,90900.0,90899.0,0.32986424]
[1765293547699,0.00078561,90900.0,90899.0,0.30069457]
[1765293548560,0.00078561,90900.0,90899.0,0.32988041]
[1765293548792,0.00078561,90900.0,90899.0,0.30369457]
[1765293548991,0.00078561,90900.0,90899.0,0.30169457]
[1765293549327,0.00078561,90900.0,90899.0,0.33187374]
[1765293549521,9e-05,90904.0,90903.0,1.65872431]
[1765293549822,0.0004,90930.0,90919.0,0.53275396]
[1765293550839,0.0004,90930.0,90919.0,0.56191754]
[1765293551049,0.0004,90930.0,90919.0,0.64636453]
[1765293551175,0.0004,90930.0,90919.0,0.61720095]
[1765293551579,0.00258333,90920.0,90919.0,0.53275396]
[1765293551811,0.00258333,90920.0,90918.0,0.21997844]
[1765293551812,0.00258333,90920.0,90918.0,0.21997719]
[1765293552010,0.00251287,90920.0,90919.0,0.002]
[1765293552890,0.00251287,90920.0,90918.0,0.21997752]
[1765293553302,0.00351287,90920.0,90918.0,0.21997752]
[1765293553536,0.00251287,90920.0,90919.0,0.001]
[1765293554106,0.00251287,90920.0,90918.0,0.21997752]
[1765293554515,0.0009,90920.0,90918.0,0.21997752]
[1765293554724,0.0019,90920.0,90919.0,0.00999457]
[1765293555131,0.0009,90920.0,90919.0,0.02000715]
[1765293555332,0.0029,90920.0,90918.0,0.22097752]
[1765293555660,0.00251287,90920.0,90918.0,0.22097752]
[1765293555796,0.0009,90920.0,90918.0,0.21997752]
[1765293555990,0.0029,90920.0,90919.0,0.02207794]
[1765293556199,0.0009,90920.0,90919.0,0.02307794]
[1765293556401,0.0009,90920.0,90919.0,0.31377794]
[1765293556596,0.0029,90920.0,90919.0,0.31277794]
[1765293557118,0.0004,90930.0,90929.0,0.21995183]
[1765293557316,0.0004,90930.0,90929.0,0.24202977]
[1765293557773,0.0004,90930.0,90929.0,0.21995183]
[1765293558198,0.00237844,90930.0,90929.0,0.21995183]
[1765293558711,0.00437844,90930.0,90929.0,0.21995183]
[1765293558909,0.00237844,90930.0,90929.0,0.21995183]
[1765293559410,0.00637844,90930.0,90929.0,0.24202977]
[1765293559613,0.00237844,90930.0,90929.0,0.53272977]
[1765293560411,0.00237844,90930.0,90929.0,0.53372977]
[1765293560812,0.00337844,90930.0,90929.0,0.53372977]
[1765293561024,0.00237844,90930.0,90929.0,0.53372977]
[1765293561201,0.0004,90940.0,90939.0,0.52062221]
[1765293561389,0.00051554,90940.0,90939.0,0.52062221]
[1765293561775,1e-08,90940.0,90939.0,1.06291521]
[1765293561975,0.0004,90960.0,90959.0,0.53265722]
[1765293562663,0.00201287,90960.0,90959.0,0.21987928]
[1765293563008,0.00201287,90960.0,90959.0,0.22187928]
[1765293563631,0.00201287,90960.0,90959.0,0.24195722]
[1765293564033,0.00201287,90960.0,90959.0,0.22087928]
[1765293564417,0.0004,90960.0,90959.0,0.22087928]
[1765293564625,0.0004,90960.0,90959.0,0.24295722]
[1765293564836,0.0004,90960.0,90959.0,0.24195722]
[1765293565249,0.0034,90960.0,90959.0,0.24195722]
[1765293565483,0.0004,90960.0,90959.0,0.24195722]
[1765293566312,0.0004,90960.0,90959.0,0.24295722]
[1765293566744,0.0004,90960.0,90959.0,0.24195722]
[1765293567105,0.00228524,90960.0,90959.0,0.24395722]
[1765293567228,0.00128524,90960.0,90959.0,0.24395722]
[1765293567422,0.00128524,90960.0,90959.0,0.24495722]
[1765293568258,0.00128524,90960.0,90959.0,0.24195722]
[1765293568472,0.00128524,90960.0,90959.0,0.53365722]
[1765293568683,0.00128524,90960.0,90959.0,0.53565722]
[1765293568904,0.00128524,90960.0,90959.0,0.56475696]
[1765293569110,0.00128524,90960.0,90959.0,0.56273678]
[1765293569320,0.00128524,90960.0,90959.0,0.53365722]
[1765293569531,0.00128524,90960.0,90959.0,0.53565722]
[1765293569757,0.00128524,90960.0,90959.0,0.53465722]
[1765293570007,0.00128524,90960.0,90959.0,0.53265722]
[1765293570170,0.00128524,90960.0,90959.0,0.53365722]
[1765293570372,0.00128524,90960.0,90959.0,0.53465722]
[1765293570783,0.00128524,90960.0,90959.0,0.24495722]
[1765293570991,0.00128524,90960.0,90959.0,0.24395722]
[1765293571541,0.00128524,90960.0,90959.0,0.24495722]
[1765293571742,0.00128524,90960.0,90959.0,0.24195722]
[1765293571854,0.00128524,90960.0,90959.0,0.24495722]
[1765293572508,0.00128524,90960.0,90959.0,0.24295722]
[1765293573160,0.00128524,90960.0,90959.0,0.24195722]
[1765293573360,0.00328524,90960.0,90959.0,0.24195722]